bitfinex-derivatives/quotes_SOLF0:USTF0_20251201
["timestamp","ask_amount","ask_price","bid_price","bid_amount"]
[1764580261292,24.41,127.06,127.04,7.0851]
[1764580261497,24.41,127.06,127.05,2.61078772]
[1764580261900,24.41,127.06,127.05,9.69578772]
[1764580262100,3.2,127.12,127.05,2.61078772]
[1764580262299,0.05306253,127.1,127.08,2.61078772]
[1764580265303,0.05306253,127.1,127.09,2.61078772]
[1764580266608,0.05306253,127.1,127.09,29.63078772]
[1764580268610,0.05306253,127.1,127.09,27.02]
[1764580269401,3.25306253,127.1,127.07,0.04972236]
[1764580269911,3.25306253,127.1,127.08,27.02]
[1764580271605,3.25306253,127.1,127.07,7.13352236]
[1764580271806,3.25306253,127.1,127.08,27.0]
[1764580272910,3.2,127.09,127.08,27.0]
[1764580273414,3.25306253,127.1,127.08,27.0]
[1764580273602,3.25306253,127.1,127.08,29.61078772]
[1764580274815,3.25306253,127.1,127.08,27.0]
[1764580275912,0.05306253,127.1,127.08,27.0]
[1764580277308,0.05306253,127.1,127.09,27.0]
[1764580278616,3.25306253,127.1,127.09,27.0]
[1764580278921,3.25306253,127.1,127.07,0.04972236]
[1764580279219,3.2,127.09,127.07,0.04972236]
[1764580280415,10.2533,127.08,127.07,0.04972236]
[1764580282530,3.17,127.06,127.02,7.0866]
[1764580282815,3.17,127.06,127.01,2.61078772]
[1764580283022,3.17,127.06,127.02,27.0]
[1764580283220,10.2557,127.04,126.98,2.61078772]
[1764580283525,0.05589351,127.02,126.99,27.0]
[1764580285324,7.14259351,127.02,126.99,27.0]
[1764580285525,0.05589351,127.02,127.0,2.61078772]
[1764580286920,0.05589351,127.02,127.01,7.0872]
[1764580287721,7.0838,127.08,127.02,7.0864]
[1764580287929,3.3,127.07,127.03,2.61078772]
[1764580288121,3.3,127.07,127.03,29.61078772]
[1764580288522,0.05205914,127.06,127.04,0.05902437]
[1764580289429,0.05205914,127.06,127.04,62.05902437]
[1764580289827,0.05205914,127.06,127.04,69.14452437]
[1764580290124,3.35205914,127.06,127.04,62.05902437]
[1764580290320,3.35205914,127.06,126.94,48.08175054]
[1764580290321,3.3,127.05,126.97,8.4589439]
[1764580290527,3.3,127.05,126.98,29.61078772]
[1764580290725,3.3,127.05,126.98,27.0]
[1764580290925,3.3,127.05,126.98,29.61078772]
[1764580291121,12.99578772,127.05,126.98,36.69908772]
[1764580291317,0.05646582,127.03,126.98,29.61078772]
[1764580292116,0.05646582,127.03,126.98,2.61078772]
[1764580292320,3.35646582,127.03,126.99,27.02]
[1764580293324,3.35646582,127.03,126.99,89.02]
[1764580293625,3.35646582,127.03,126.99,27.02]
[1764580293830,0.05646582,127.03,126.99,27.02]
[1764580295927,3.35646582,127.03,126.99,27.02]
[1764580296132,3.35646582,127.03,126.97,1.3699439]
[1764580296333,3.35646582,127.03,126.97,28.3899439]
[1764580296730,3.35646582,127.03,126.97,32.47822221]
[1764580297332,3.35646582,127.03,126.97,28.3899439]
[1764580297837,0.05646582,127.03,127.0,7.0876]
[1764580298336,0.05646582,127.03,126.98,4.08827831]
[1764580298337,0.05646582,127.03,126.98,114.35657831]
[1764580300438,3.35646582,127.03,127.0,7.0874]
[1764580300737,0.05646582,127.03,127.0,7.0874]
[1764580301228,0.05646582,127.03,127.01,27.02]
[1764580302439,0.05646582,127.03,127.01,34.1071]
[1764580304035,0.05646582,127.03,127.02,4.08827831]
[1764580304430,3.3,127.09,127.02,4.08827831]
[1764580305140,14.01,127.08,127.02,4.08827831]
[1764580305341,0.05018145,127.06,127.04,7.13625206]
[1764580305638,0.05018145,127.06,127.05,27.02]
[1764580306937,0.05018145,127.06,127.04,7.13625206]
[1764580307140,3.35018145,127.06,127.05,27.0]
[1764580307539,0.05018145,127.06,127.05,27.0]
[1764580311745,3.34018145,127.06,127.05,27.0]
[1764580311948,3.34018145,127.06,126.99,4.08827831]
[1764580312143,3.34018145,127.06,127.03,27.0]
[1764580312446,3.34018145,127.06,126.99,4.08827831]
[1764580312650,3.29,127.04,127.0,27.0]
[1764580312845,3.29,127.04,126.99,11.17607831]
[1764580313150,0.05333545,127.03,127.0,27.0]
[1764580313548,3.34333545,127.03,127.0,27.0]
[1764580313945,0.05333545,127.03,127.0,34.0878]
[1764580314944,0.05333545,127.03,127.0,27.0]
[1764580315143,3.34333545,127.03,126.97,1.3699439]
[1764580315347,3.34333545,127.03,127.0,27.0]
[1764580315546,10.42993545,127.03,127.0,27.0]
[1764580315751,3.29,127.02,127.0,27.0]
[1764580316354,10.3767,127.02,127.0,27.0]
[1764580316950,7.13943545,127.03,127.0,27.0]
[1764580317153,3.29,127.02,127.0,27.0]
[1764580318156,10.3767,127.02,126.98,7.0889]
[1764580318462,10.3767,127.02,126.99,27.0]
[1764580320961,10.3767,127.02,127.0,27.0]
[1764580321658,7.13943545,127.03,127.0,27.0]
[1764580322762,0.05333545,127.03,127.0,38.17607831]
[1764580324764,0.05333545,127.03,127.0,7.0878]
[1764580324972,0.05333545,127.03,127.01,34.0871]
[1764580326282,0.05333545,127.03,127.02,27.0]
[1764580326771,0.05333545,127.03,127.01,27.0]
[1764580328461,0.05333545,127.03,127.01,34.0872]
[1764580329871,0.05333545,127.03,127.02,27.0]
[1764580330476,3.34333545,127.03,126.97,5.45822221]
[1764580330773,3.34333545,127.03,126.98,27.0]
[1764580331470,3.34333545,127.03,126.99,7.0879]
[1764580334476,3.34333545,127.03,127.0,27.0]
[1764580336574,0.05333545,127.03,127.0,27.0]
[1764580336976,0.05333545,127.03,127.01,4.08827831]
[1764580337377,0.05333545,127.03,127.02,7.0867]
[1764580340083,0.05333545,127.03,127.02,11.17497831]
[1764580341889,0.05333545,127.03,127.02,38.17497831]
[1764580342686,20.9534,127.08,127.03,7.0859]
[1764580342891,10.71,127.08,127.02,31.08827831]
[1764580343590,0.05800545,127.06,127.04,0.05203637]
[1764580344495,0.05800545,127.06,127.04,7.13743637]
[1764580346292,0.05800545,127.06,127.05,26.98]
[1764580346293,3.21800545,127.06,127.05,26.98]
[1764580349291,0.05800545,127.06,127.05,26.98]
[1764580349492,3.15800545,127.06,127.04,27.03203637]
[1764580350193,0.05800545,127.06,127.04,27.03203637]
[1764580352188,0.05800545,127.06,127.04,34.11753637]
[1764580352887,0.05800545,127.06,127.05,7.085]
[1764580353486,0.05800545,127.06,127.05,11.17327831]
[1764580353888,0.05800545,127.06,127.04,27.03203637]
[1764580353889,0.05800545,127.06,127.04,0.05203637]
[1764580354293,0.05800545,127.06,127.05,26.98]
[1764580360002,0.05800545,127.06,127.05,29.59447923]
[1764580363204,0.05800545,127.06,127.05,2.61447923]
[1764580363402,0.05800545,127.06,127.05,29.59447923]
[1764580364394,0.05800545,127.06,127.05,36.67947923]
[1764580365601,0.05800545,127.06,127.05,34.065]
[1764580365801,0.05800545,127.06,127.05,7.085]
[1764580366201,0.05800545,127.06,127.05,34.065]
[1764580366504,0.05800545,127.06,127.05,7.085]
[1764580366704,0.05800545,127.06,127.05,26.98]
[1764580368806,3.15800545,127.06,127.05,26.98]
[1764580369307,0.05800545,127.06,127.05,26.98]
[1764580372110,3.42800545,127.06,127.05,26.98]
[1764580373004,0.05800545,127.06,127.05,26.98]
[1764580378809,0.05800545,127.06,127.04,0.05203637]
[1764580379018,0.05800545,127.06,127.04,27.03203637]
[1764580381618,3.42800545,127.06,127.04,0.05203637]
[1764580382625,10.455,127.05,127.01,7.0867]
[1764580382822,3.37,127.04,127.02,26.98]
[1764580387528,10.4555,127.04,127.02,26.98]
[1764580388530,10.4573,127.01,126.97,1.3699439]
[1764580388720,3.42435332,127.0,126.97,1.3699439]
[1764580389418,3.42435332,127.0,126.96,34.0695]
[1764580389419,10.51235332,127.0,126.96,34.0695]
[1764580389637,10.51235332,127.0,126.96,26.98]
[1764580390426,7.0884,126.99,126.96,26.98]
[1764580391328,3.42435332,127.0,126.95,26.98]
[1764580391526,10.83,126.98,126.95,26.98]
[1764580391829,10.83,126.98,126.95,88.98]
[1764580395226,10.83,126.98,126.95,62.0]
[1764580395526,10.83,126.98,126.96,26.98]
[1764580395726,10.88707587,126.98,126.94,2.61447923]
[1764580396026,10.88707587,126.98,126.95,26.98]
[1764580396722,14.25707587,126.98,126.95,26.98]
[1764580396937,21.34597587,126.98,126.95,26.98]
[1764580397833,3.37,126.97,126.95,26.98]
[1764580398338,3.37,126.97,126.94,26.98]
[1764580399233,3.37,126.96,126.94,26.98]
[1764580399437,3.37,126.96,126.9,2.61447923]
[1764580399639,0.05623731,126.94,126.92,27.0]
[1764580401243,0.05623731,126.94,126.93,27.0]
[1764580405137,0.05623731,126.94,126.91,7.0927]
[1764580405336,0.05623731,126.94,126.91,69.0927]
[1764580405536,0.05623731,126.94,126.92,27.0]
[1764580406733,0.05623731,126.94,126.92,29.61447923]
[1764580408345,12.83267923,127.0,126.92,29.61447923]
[1764580408543,12.83267923,127.0,126.94,2.61447923]
[1764580408935,3.13,127.0,126.96,7.0898]
[1764580409137,0.05917536,126.99,126.97,27.06005336]
[1764580409746,10.91917536,126.99,126.97,27.06005336]
[1764580412438,14.29917536,126.99,126.97,27.06005336]
[1764580412741,3.38,126.98,126.97,27.06005336]
[1764580412941,3.38,126.97,126.92,27.0]
[1764580413134,3.38,126.97,126.92,29.61447923]
[1764580413736,2.61447923,126.98,126.92,29.61447923]
[1764580414047,0.05171764,126.96,126.94,2.61447923]
[1764580414543,0.05171764,126.96,126.92,31.09133241]
[1764580414753,0.05171764,126.96,126.94,4.09133241]
[1764580415435,0.05171764,126.96,126.95,7.0906]
[1764580415639,0.05171764,126.96,126.94,4.09133241]
[1764580415844,0.05171764,126.96,126.92,27.0]
[1764580416041,0.05171764,126.96,126.93,7.0912]
[1764580417353,0.05171764,126.96,126.92,34.0922]
[1764580417848,0.05171764,126.96,126.93,7.0916]
[1764580418847,0.05171764,126.96,126.94,27.0]
[1764580419640,10.52191764,126.96,126.94,27.0]
[1764580420348,7.14191764,126.96,126.94,27.0]
[1764580421349,0.05171764,126.96,126.94,27.0]
[1764580423854,0.05171764,126.96,126.94,34.0911]
[1764580424049,28.53171764,126.96,126.94,34.0911]
[1764580426555,28.53171764,126.96,126.95,7.0906]
[1764580432357,28.53171764,126.96,126.95,34.0906]
[1764580441871,28.53171764,126.96,126.95,7.0906]
[1764580442163,28.53171764,126.96,126.95,34.0906]
[1764580444965,0.05171764,126.96,126.95,34.0906]
[1764580449073,0.05171764,126.96,126.95,38.18193241]
[1764580450977,0.05171764,126.96,126.95,11.18193241]
[1764580451275,0.05171764,126.96,126.95,38.16193241]
[1764580453468,27.33,126.97,126.96,7.09]
[1764580453469,22.38265935,126.97,126.96,7.09]
[1764580453672,3.41,127.0,126.95,31.07133241]
[1764580454476,14.37994915,126.99,126.96,0.05539829]
[1764580454978,14.37994915,126.99,126.97,7.0889]
[1764580455174,14.37994915,126.99,126.98,26.98]
[1764580455579,3.41,126.98,126.96,7.14489829]
[1764580455780,3.41,126.98,126.97,26.98]
[1764580457373,8.519e-05,126.99,126.97,31.07133241]
[1764580457579,8.519e-05,126.99,126.98,26.98]
[1764580458467,8.519e-05,126.99,126.98,34.0689]
[1764580459174,8.519e-05,126.99,126.98,7.0889]
[1764580459373,8.519e-05,126.99,126.98,34.0689]
[1764580460378,8.519e-05,126.99,126.98,96.0689]
[1764580464585,3.23008519,126.99,126.98,7.0889]
[1764580464783,3.23008519,126.99,126.98,34.0689]
[1764580465280,8.519e-05,126.99,126.98,34.0689]
[1764580467575,8.519e-05,126.99,126.98,96.0689]
[1764580470183,8.519e-05,126.99,126.98,34.0689]
[1764580471576,8.519e-05,126.99,126.98,7.0889]
[1764580471777,8.519e-05,126.99,126.98,34.0689]
[1764580475187,8.519e-05,126.99,126.98,38.16023241]
[1764580476392,8.519e-05,126.99,126.98,36.68465652]
[1764580476791,0.05241764,127.0,126.99,7.0883]
[1764580480388,20.48,127.04,127.01,7.0867]
[1764580480596,3.29,127.03,127.02,29.59575652]
[1764580482196,3.29,127.03,127.02,26.98]
[1764580486697,3.29,127.03,127.02,34.0667]
[1764580486996,3.29,127.03,127.02,36.68245652]
[1764580487591,17.24659654,127.04,127.02,36.68245652]
[1764580488098,3.29,127.08,127.02,139.83095652]
[1764580488299,3.29,127.08,127.05,2.61575652]
[1764580488594,3.29,127.08,127.06,26.98]
[1764580489194,3.34522724,127.08,127.06,27.03658242]
[1764580490292,3.34522724,127.08,127.06,34.12078242]
[1764580493701,0.05522724,127.08,127.07,9.69965652]
[1764580500310,21.67,127.12,127.07,112.80755652]
[1764580500519,21.67,127.12,127.11,2.61575652]
[1764580500721,3.34,127.11,127.06,133.31071309]
[1764580500916,3.34,127.11,127.07,26.96]
[1764580501313,0.05151339,127.1,127.08,0.04994936]
[1764580501515,0.05082247,127.1,127.08,0.04994936]
[1764580502410,0.05082247,127.1,127.08,7.13294936]
[1764580502609,3.39082247,127.1,127.09,26.96]
[1764580504425,3.39082247,127.1,127.08,0.04994936]
[1764580504823,3.39082247,127.1,127.08,27.00994936]
[1764580505123,0.05082247,127.1,127.08,27.00994936]
[1764580506323,3.39082247,127.1,127.08,27.00994936]
[1764580506627,3.39082247,127.1,127.08,34.09324936]
[1764580506827,0.05082247,127.1,127.08,27.00994936]
[1764580507021,0.05082247,127.1,127.09,7.0828]
[1764580508725,3.39082247,127.1,127.09,34.0428]
[1764580509723,0.05082247,127.1,127.09,34.0428]
[1764580511425,0.05082247,127.1,127.09,36.65855652]
[1764580521031,23.01,127.14,127.12,7.0811]
[1764580521226,23.01,127.14,127.13,26.96]
[1764580521430,19.89,127.14,127.13,26.96]
[1764580521633,23.01,127.14,127.13,26.96]
[1764580522333,23.01,127.14,127.13,34.0405]
[1764580525539,19.89,127.14,127.13,34.0405]
[1764580525740,23.01,127.14,127.13,34.0405]
[1764580527638,19.89,127.14,127.13,34.0405]
[1764580532240,19.89,127.14,127.13,7.0805]
[1764580532446,19.89,127.14,127.13,34.0205]
[1764580537238,14.89,127.14,127.13,34.0205]
[1764580538949,28.07452781,127.15,127.14,7.08]
[1764580540352,0.05452781,127.15,127.14,7.08]
[1764580543951,3.18452781,127.15,127.14,34.02]
[1764580546856,3.18452781,127.15,127.12,7.13318922]
[1764580547055,3.18452781,127.15,127.14,26.94]
[1764580553364,3.26,127.14,127.13,26.94]
[1764580555352,3.26,127.14,127.13,24.35433125]
[1764580555560,3.26,127.13,127.08,62.0]
[1764580555759,3.26,127.13,127.1,26.94]
[1764580556162,3.26,127.12,127.1,26.94]
[1764580556562,3.31181054,127.12,127.1,26.99933468]
[1764580559570,3.26,127.11,127.1,26.99933468]
[1764580561372,3.26,127.1,127.06,7.0842]
[1764580562057,3.26,127.07,127.05,26.94]
[1764580562571,10.39501614,127.07,127.05,0.05056619]
[1764580562769,3.31071614,127.07,127.05,0.05056619]
[1764580563472,3.26,127.05,127.02,26.94]
[1764580564372,3.26,127.04,127.02,26.94]
[1764580564584,3.26,127.04,127.02,26.99360082]
[1764580564873,3.31062479,127.04,127.02,26.99360082]
[1764580565777,3.31062479,127.04,127.02,0.05360082]
[1764580566468,0.05062479,127.04,127.02,0.05360082]
[1764580566678,0.05062479,127.04,127.02,4.13149286]
[1764580567475,0.05062479,127.04,127.02,11.21779286]
[1764580567868,3.26,127.09,127.02,115.94799286]
[1764580568070,3.26,127.09,127.02,0.05360082]
[1764580568777,0.06008147,127.07,127.02,0.05360082]
[1764580569075,0.06008147,127.07,127.03,4.07789204]
[1764580569579,0.06008147,127.07,127.04,62.0]
[1764580569778,0.06008147,127.07,127.05,26.94]
[1764580570074,0.06008147,127.07,127.05,27.00032205]
[1764580572978,0.06008147,127.07,127.05,34.08522205]
[1764580574380,0.06008147,127.07,127.06,4.07789204]
[1764580574570,0.06008147,127.07,127.06,11.16229204]
[1764580574877,0.06008147,127.07,127.06,7.0844]
[1764580575177,0.06008147,127.07,127.06,34.0244]
[1764580577179,3.32008147,127.07,127.06,26.94]
[1764580577478,3.32008147,127.07,126.98,4.07789204]
[1764580577479,3.26,127.06,126.98,4.07789204]
[1764580577674,3.26,127.06,126.99,26.94]
[1764580578177,3.26,127.04,127.0,7.0878]
[1764580578573,3.31644958,127.03,127.01,0.05918293]
[1764580578766,0.05644958,127.03,127.01,7.14638293]
[1764580580480,3.39644958,127.03,127.01,7.14638293]
[1764580580878,0.05644958,127.03,127.01,7.14638293]
[1764580582976,0.05644958,127.03,127.02,7.0867]
[1764580583584,0.05644958,127.03,127.02,69.0867]
[1764580586185,19.3,127.05,127.04,7.0855]
[1764580586377,19.3,127.05,127.04,34.0455]
[1764580589977,19.3,127.05,127.04,26.96]
[1764580590176,22.64,127.05,127.04,26.96]
[1764580591289,3.34,127.05,127.04,26.96]
[1764580593084,3.39627444,127.06,127.04,26.96]
[1764580593288,3.39627444,127.06,127.04,27.00984368]
[1764580594893,0.05627444,127.06,127.04,27.00984368]
[1764580595888,0.05627444,127.06,127.05,7.085]
[1764580596495,0.05627444,127.06,127.04,27.00984368]
[1764580597088,0.05627444,127.06,127.05,7.085]
[1764580603092,0.05627444,127.06,127.05,9.69925859]
[1764580603692,16.33,127.09,127.05,112.81765859]
[1764580603887,110.1043,127.18,127.05,112.81765859]
[1764580603888,3.34,127.18,127.09,110.1766]
[1764580604098,3.34,127.18,127.14,2.61425859]
[1764580604300,3.34,127.18,127.15,26.96]
[1764580604692,3.39480655,127.18,127.15,27.01915866]
[1764580607102,3.39480655,127.18,127.15,34.09835866]
[1764580607797,0.05480655,127.18,127.16,9.69285859]
[1764580608591,3.39480655,127.18,127.17,26.94]
[1764580610907,0.05480655,127.18,127.17,26.94]
[1764580611406,0.05480655,127.18,127.17,29.55425859]
[1764580615802,3.36480655,127.18,127.15,2.67341725]
[1764580615995,3.36480655,127.18,127.16,26.94]
[1764580620012,0.05480655,127.18,127.16,26.94]
[1764580620214,0.05480655,127.18,127.17,2.61425859]
[1764580621115,0.05480655,127.18,127.17,9.69255859]
[1764580621308,24.09,127.21,127.17,2.61425859]
[1764580621514,24.09,127.21,127.2,2.61425859]
[1764580621815,24.09,127.21,127.2,29.55425859]
[1764580622110,10.3838,127.26,127.2,29.55425859]
[1764580622307,3.31,127.25,127.21,62.0]
[1764580622514,0.05245144,127.24,127.22,0.05657574]
[1764580623210,3.36245144,127.24,127.22,0.05657574]
[1764580628521,3.31,127.22,127.17,26.92]
[1764580629216,10.3855,127.22,127.17,33.9977]
[1764580629417,3.36088372,127.21,127.18,0.04989772]
[1764580631015,3.31,127.19,127.18,0.04989772]
[1764580631926,0.05088372,127.21,127.18,2.66415631]
[1764580632832,0.05088372,127.21,127.2,2.61425859]
[1764580633520,0.05088372,127.21,127.2,9.69085859]
[1764580634330,0.05088372,127.21,127.2,7.0766]
[1764580634526,0.05088372,127.21,127.2,9.69085859]
[1764580635729,0.05088372,127.21,127.2,2.61425859]
[1764580636030,0.05088372,127.21,127.18,9.74145631]
[1764580636428,0.05088372,127.21,127.18,2.66415631]
[1764580637328,0.05088372,127.21,127.18,9.74155631]
[1764580637526,0.05088372,127.21,127.18,2.66415631]
[1764580638924,3.36088372,127.21,127.18,0.04989772]
[1764580639131,3.36088372,127.21,127.18,26.96989772]
[1764580639520,3.31,127.2,127.18,26.96989772]
[1764580642938,3.31,127.2,127.18,34.04749772]
[1764580644934,3.31,127.2,127.18,26.96989772]
[1764580646641,3.29,127.19,127.18,0.04989772]
[1764580648834,10.3672,127.19,127.18,0.04989772]
[1764580649939,3.13,127.17,127.13,7.0801]
[1764580650148,3.13,127.17,127.12,29.53425859]
[1764580650344,3.13,127.16,127.12,26.92]
[1764580650543,3.13,127.14,127.12,26.92]
[1764580650934,0.05612846,127.14,127.12,26.9734696]
[1764580653749,3.18612846,127.14,127.12,26.9734696]
[1764580656846,0.05612846,127.14,127.12,26.9734696]
[1764580657044,0.05612846,127.14,127.12,29.58772819]
[1764580658048,10.26612846,127.14,127.12,26.9734696]
[1764580659451,3.13,127.12,127.02,110.2334]
[1764580659643,3.13,127.12,127.06,2.61425859]
[1764580659843,10.2123,127.1,127.06,2.61425859]
[1764580660044,3.13,127.09,127.06,2.61425859]
[1764580660549,3.18981149,127.09,127.06,0.05389505]
[1764580661140,0.05981149,127.09,127.06,0.05389505]
[1764580662952,10.27261149,127.09,127.06,0.05389505]
[1764580668952,3.18981149,127.09,127.06,0.05389505]
[1764580671052,3.18981149,127.09,127.06,7.13829505]
[1764580672652,3.18981149,127.09,127.07,7.0839]
[1764580672853,0.05981149,127.09,127.08,26.94]
[1764580673758,0.05981149,127.09,127.08,34.0233]
[1764580673959,0.05981149,127.09,127.08,7.0833]
[1764580676554,3.20981149,127.09,127.08,7.0833]
[1764580676760,3.20981149,127.09,127.07,26.94]
[1764580677260,0.05981149,127.09,127.07,26.94]
[1764580679455,0.05981149,127.09,127.08,7.0833]
[1764580679952,0.05981149,127.09,127.08,11.16753386]
[1764580680356,21.71,127.17,127.09,110.1744]
[1764580680567,24.86,127.17,127.11,4.08423386]
[1764580680763,3.15,127.16,127.12,26.94]
[1764580681462,0.05892907,127.15,127.13,0.05744533]
[1764580682057,3.20892907,127.15,127.13,0.05744533]
[1764580682959,10.23,127.14,127.13,0.05744533]
[1764580684260,3.15,127.12,127.1,7.0822]
[1764580684460,3.15,127.12,127.09,34.0227]
[1764580685365,3.20085473,127.12,127.09,34.07549764]
[1764580685566,3.15,127.11,127.09,34.07549764]
[1764580686266,3.15,127.11,127.09,26.99279764]
[1764580688763,24.39085473,127.12,127.09,26.99279764]
[1764580689665,3.15,127.11,127.09,0.05279764]
[1764580689872,3.15,127.11,127.09,26.99279764]
[1764580692871,3.15,127.11,127.09,34.07549764]
[1764580693468,21.24085473,127.12,127.09,34.07549764]
[1764580693673,24.39085473,127.12,127.09,34.07549764]
[1764580699772,3.32,127.11,127.09,34.07549764]
[1764580702676,21.24085473,127.12,127.09,34.07549764]
[1764580702974,24.56085473,127.12,127.09,34.07549764]
[1764580703578,3.37085473,127.12,127.09,34.07549764]
[1764580705680,21.89,127.11,127.09,34.07549764]
[1764580706675,21.89,127.11,127.09,26.99279764]
[1764580706983,21.89,127.11,127.1,7.0822]
[1764580708088,3.09,127.19,127.1,110.1598]
[1764580708390,3.09,127.17,127.1,110.1598]
[1764580708566,3.09,127.17,127.1,114.24403386]
[1764580708971,0.05514632,127.15,127.12,0.05246308]
[1764580709276,3.14514632,127.15,127.12,0.05246308]
[1764580709484,3.14514632,127.15,127.12,7.13356308]
[1764580710186,3.14514632,127.15,127.12,0.05246308]
[1764580710683,3.14514632,127.15,127.08,31.02423386]
[1764580710983,3.09,127.12,127.08,26.94]
[1764580711576,3.14123478,127.11,127.09,0.05164087]
[1764580712276,0.05123478,127.11,127.09,0.05164087]
[1764580713376,0.05123478,127.11,127.1,7.0822]
[1764580715487,0.05123478,127.11,127.09,0.05164087]
[1764580715781,3.14123478,127.11,127.09,0.05164087]
[1764580718488,10.22293478,127.11,127.09,0.05164087]
[1764580718678,3.14123478,127.11,127.09,0.05164087]
[1764580718880,0.05123478,127.11,127.09,0.05164087]
[1764580720886,3.14123478,127.11,127.09,0.05164087]
[1764580721489,10.1722,127.1,127.09,0.05164087]
[1764580723177,2.66389965,127.11,127.07,26.94]
[1764580723178,10.1733,127.08,127.07,26.94]
[1764580725789,7.0833,127.08,127.07,26.94]
[1764580728190,10.1733,127.08,127.07,26.94]
[1764580728994,7.0833,127.08,127.07,26.94]
[1764580731187,10.3828,127.1,127.07,26.94]
[1764580731388,0.05123478,127.11,127.07,29.55266487]
[1764580731589,0.05123478,127.11,127.09,2.61266487]
[1764580731796,0.05123478,127.11,127.09,2.6665261]
[1764580734789,3.3,127.17,127.09,2.6665261]
[1764580734991,3.3,127.17,127.13,2.61266487]
[1764580735586,18.54,127.18,127.13,2.61266487]
[1764580735793,0.04954704,127.17,127.15,2.61266487]
[1764580737202,3.34954704,127.17,127.14,0.05948657]
[1764580737387,3.34954704,127.17,127.14,2.67215144]
[1764580738395,3.34954704,127.17,127.14,0.05948657]
[1764580739395,3.3,127.16,127.14,0.05948657]
[1764580740589,3.3,127.15,127.14,0.05948657]
[1764580747695,3.3,127.14,127.09,7.0822]
[1764580748798,3.3,127.12,127.1,0.05624573]
[1764580754199,3.34975167,127.13,127.1,2.6689106]
[1764580754399,3.34975167,127.13,127.1,0.05624573]
[1764580755005,3.3,127.12,127.1,0.05624573]
[1764580757708,3.3,127.12,127.07,88.94]
[1764580757908,3.3,127.09,127.04,2.61266487]
[1764580758704,3.3,127.09,127.05,0.04675376]
[1764580759011,2.61266487,127.11,127.05,0.04675376]
[1764580759012,3.3,127.07,127.05,0.04675376]
[1764580761408,10.3839,127.07,127.05,0.04675376]
[1764580761611,3.1,127.06,127.05,0.04675376]
[1764580762207,3.1,127.07,127.05,0.04675376]
[1764580764210,3.15213326,127.08,127.05,0.04675376]
[1764580765416,0.05213326,127.08,127.06,2.61266487]
[1764580766006,3.15213326,127.08,127.06,2.61266487]
[1764580769229,3.44213326,127.08,127.06,2.61266487]
[1764580772522,3.44213326,127.08,127.05,7.13135376]
[1764580774022,3.39,127.07,127.05,7.13135376]
[1764580775024,3.39,127.07,127.05,26.98675376]
[1764580775225,3.39,127.07,127.05,0.04675376]
[1764580775425,3.39,127.07,127.05,26.98675376]
[1764580775923,3.39,127.07,127.05,0.04675376]
[1764580784025,10.474,127.07,127.05,0.04675376]
[1764580784224,3.39,127.06,127.05,0.04675376]
[1764580789733,3.39,127.06,126.99,133.72043882]
[1764580789927,3.39,127.06,127.0,26.94]
[1764580790129,3.39,127.06,127.01,4.08550269]
[1764580790729,3.19,127.04,127.01,4.08550269]
[1764580790934,0.05113599,127.05,127.03,4.08550269]
[1764580791534,0.05113599,127.05,127.04,7.0855]
[1764580792624,0.05113599,127.05,127.04,69.0855]
[1764580794834,0.05113599,127.05,127.04,96.0255]
[1764580798150,0.05113599,127.05,127.04,34.0255]
[1764580803535,19.21,127.08,127.04,26.94]
[1764580803737,3.19,127.07,127.05,4.08550269]
[1764580803937,22.4,127.08,127.05,4.08550269]
[1764580804740,22.45615332,127.08,127.05,4.08550269]
[1764580805443,22.45615332,127.08,127.06,7.0844]
[1764580805743,19.26615332,127.08,127.06,0.05113599]
[1764580806537,19.26615332,127.08,127.07,31.02550269]
[1764580806945,0.05615332,127.08,127.07,31.02550269]
[1764580807336,0.05615332,127.08,127.07,38.10940269]
[1764580810539,0.05615332,127.08,127.07,26.94]
[1764580810540,3.24615332,127.08,127.07,26.94]
[1764580812145,3.24615332,127.08,127.06,0.05113599]